Cogmind - Beta 15 @@@ ROGUE MODE // 2025.09.07 @ 16:41:34 Player: shapeshifter Result: Destroyed by G2-MUL(R) with Subdweller Beam Cannon Performance ------------- Evolutions (0) 0 Regions Visited (2) 400 Robots Destroyed (9) 45 Value Destroyed (233) 233 Prototype IDs (0) 0 Alien Tech Used (0) 0 Bonus (0) 0 TOTAL SCORE: 678 Bonus ------- None Cogmind --------- Core Integrity 0/250 Matter 267/300 Energy 200/200 System Corruption 2% Temperature Warning (399) Movement Core (200) Ox3 Location -10/Subcaves Parts ------- > --- POWER (1) -------- Subdweller Power Source > --- PROPULSION (2) --- Subdweller Monowheel > --- UTILITY (2) ------ Small Storage Unit > --- WEAPON (2) ------- (None) > --- INVENTORY (8) ---- Subdweller Power Source Huge Storage Unit Scrap Shield Scrap Shield Mining Laser Peak State ------------ > --- POWER ------------ Light Ion Engine > --- PROPULSION ------- Wheel Subdweller Monowheel > --- UTILITY ---------- Huge Storage Unit Seismic Detector > --- WEAPON ----------- Light Assault Rifle Heavy Assault Rifle > --- INVENTORY -------- Subdweller Power Source Subdweller Power Source Light Treads Light Treads Subdweller Monowheel Subdweller Monowheel Small Storage Unit Subdweller Optics Scrap Shield Scrap Shield Mining Laser [Rating: 11] Favorites ----------- Power Light Ion Engine Engine Light Ion Engine Propulsion Light Treads Treads Light Treads Wheel Subdweller Monowheel Utility Small Storage Unit Device Seismic Detector Storage Small Storage Unit Protection Light Armor Plating Weapon Light Assault Rifle Energy Gun EM Pulse Gun Ballistic Gun Light Assault Rifle Build | -11 -10 -10 ------- Run | Yrd Mat Sub Slots Evolved . | . . . Power . | . . . Propulsion . | . . . Utility . | . . . Weapon . | . . . Parts Attached 16 | 7 . 9 Power 2 | 1 . 1 Engine 2 | 1 . 1 Core . | . . . Reactor . | . . . Propulsion 7 | 2 . 5 Treads 3 | 2 . 1 Leg . | . . . Wheel 4 | . . 4 Hover . | . . . Flight . | . . . Utility 4 | 2 . 2 Device 1 | 1 . . Storage 2 | 1 . 1 Processor . | . . . Hackware . | . . . Protection 1 | . . 1 Artifact . | . . . Weapon 3 | 2 . 1 Energy Gun 1 | 1 . . Energy Cannon . | . . . Ballistic Gun 2 | 1 . 1 Ballistic Cannon . | . . . Launcher . | . . . Special Weapon . | . . . Impact Weapon . | . . . Slashing Weapon . | . . . Piercing Weapon . | . . . Special Melee Weapon . | . . . Unidentified Prototypes . | . . . Corrupted Parts 1 | . . 1 System Corruption 2 | . . 2 Parts Lost 11 | . . 11 Power 1 | . . 1 Propulsion 6 | . . 6 Utility 1 | . . 1 Weapon 3 | . . 3 Highest Loss Streak 10 | . . 10 To Critical Strikes . | . . . Average Backups 5 | 2 3 7 Power 1 | . 1 1 Propulsion 2 | 1 2 2 Utility 1 | . . 2 Weapon . | . . . Tool/Special . | . . . Unused Backups 7 | . . 7 Power 2 | . . 2 Propulsion 1 | . . 1 Utility 3 | . . 3 Weapon 1 | . . 1 Tool/Special . | . . . Average Slot Usage (%) 98 | . 100 97 Engine 13 | . 14 13 Treads 21 | . 28 19 Wheel 5 | . . 8 Device 11 | . 14 10 Storage 14 | . 14 14 Protection 2 | . . 2 Energy Gun 11 | . 14 10 Ballistic Gun 15 | . 14 16 Peak Build Rating 11 | 7 7 11 Average Rating 7 | 5 7 8 On Entrance 4 | . 7 7 Naked Turns . | . . . Heaviest Build 90 | 12 12 90 Greatest Support 40 | 40 40 40 Greatest Overweight (x) 8 | . . 8 Average Overweight (x) . | . . . Largest Inventory Capacity 25 | 8 8 25 Average Capacity 11 | 7 8 13 Most Carried 14 | 5 4 14 Average Carried 6 | 2 3 8 Final Capacity 8 | 8 8 8 Final Carried 7 | 3 4 7 Class Distribution -------------------- 100% | Mutant Dominant Class ---------------- Mutant | -10/Materials Mutant | -10/Subcaves Resources | -11 -10 -10 ----------- Run | Yrd Mat Sub Matter Collected 343 | 276 4 63 Remotely . | . . . Salvage Created 383 | 154 84 145 Parts 20 | 6 3 11 Haulers Intercepted . | . . . Recyclers Shooed . | . . . Parts Field Recycled . | . . . Retrieved Matter . | . . . Parts Self-Destructed . | . . . Prevented 2 | . . 2 Kills | -11 -10 -10 ------- Run | Yrd Mat Sub Combat Hostiles Destroyed 5 | . 2 3 Guns 4 | . 1 3 AOE 1 | . 1 . Classes Destroyed 5 | 2 1 2 Tunneler 3 | 3 . . Recycler 1 | 1 . . Grunt 2 | . 2 . Sentry 1 | . . 1 Subdweller 2 | . . 2 Best Kill Streak 2 | 2 2 2 Combat Bots Only 2 | . 2 2 Max Kills in Single Turn 1 | 1 1 1 Gunslinging . | . . . Exploded 1 | . 1 . Melee . | . . . Uniques/NPCs Destroyed . | . . . Combat | -11 -10 -10 -------- Run | Yrd Mat Sub Hostile Shots Fired 65 | . 5 60 Missed 19 | . 1 18 Hits 46 | . 4 42 Projectile 46 | . 4 42 Critical Strikes 4 | . . 4 Damage Taken 1173 | . 90 1083 Core 258 | . 30 228 Absorbed by Shields . | . . . Core Remaining (%) 100 | 100 . . Volleys Fired 41 | 6 4 31 Largest 2 | 2 2 2 Hottest 60 | 60 60 60 Shots Fired 68 | 11 8 49 Gun 68 | 11 8 49 Cannon . | . . . Launcher . | . . . Special . | . . . Kinetic 44 | 6 4 34 Thermal . | . . . Explosive . | . . . Electromagnetic 24 | 5 4 15 Robot Hit Streak 11 | 6 2 11 Robot Miss Streak 2 | 1 2 2 Penetration Max . | . . . Secondary Targets . | . . . Shots Hit Robots 49 | 8 4 37 Core Hits 21 | 6 3 12 Critical Kills . | . . . Critical Parts Destroyed . | . . . Critical Strikes 1 | . . 1 Corrupt 1 | . . 1 Melee Attacks . | . . . Impact . | . . . Slashing . | . . . Piercing . | . . . Sneak Attacks . | . . . Combat Hostiles . | . . . Follow-up Attacks . | . . . Damage Inflicted 583 | 107 137 339 Guns 458 | 78 43 337 Cannons . | . . . Explosions 123 | 29 94 . Melee . | . . . Ramming 2 | . . 2 Kinetic 244 | 12 16 216 Thermal 123 | 29 94 . Explosive . | . . . Electromagnetic 214 | 66 27 121 Impact . | . . . Slashing . | . . . Piercing . | . . . Highest Corruption 2 | . . 2 Average Corruption 2 | . . 2 Corruption Purged . | . . . Corruption Blocked . | . . . Overload Shots . | . . . Overflow Damage . | . . . Projectiles . | . . . Explosions . | . . . Melee . | . . . Knockbacks . | . . . Impact . | . . . Kinetic . | . . . Secondary . | . . . Self-Inflicted Damage 38 | . 38 . Shots 1 | . 1 . Rammed 4 | . . 4 Targets Rammed 4 | . . 4 Kicked . | . . . Crushed . | . . . Highest Temperature 574 | 20 79 574 Average Temperature 140 | 12 43 261 Received Heat Transfer 1417 | . 27 1390 Effects 3 | . . 3 Shutdowns 1 | . . 1 Interference 1 | . . 1 Damage (minor) 1 | . . 1 Siege Activations . | . . . Martial Activations . | . . . Shielding Activations . | . . . Robots Disrupted . | . . . Combat Hostiles . | . . . Robots Corrupted . | . . . Combat Hostiles . | . . . Parts Fried . | . . . Impact Corruptions . | . . . Robots Melted . | . . . Combat Hostiles . | . . . Parts Melted . | . . . Heat Transferred 150 | 50 100 . Parts Sabotaged . | . . . Parts Stolen . | . . . Parts Stripped . | . . . Power Chain Reactions 2 | 1 1 . Alert | -11 -10 -10 ------- Run | Yrd Mat Sub Maximum Alert Level . | . . . Low Security (%) 100 | 100 100 . Level 1 . | . . . Level 2 . | . . . Level 3 . | . . . Level 4 . | . . . Level 5 . | . . . High Security . | . . . Max Security . | . . . Peak Influence 56 | 5 56 . Initial . | . . . Average 8 | 1 12 . Influence Increases 101 | 20 61 20 Destroy 0b10 Robot/C 60 | . 40 20 Destroy 0b10 Robot/NC 20 | 20 . . Destroy Leader 10 | . 10 . Successful Hack 5 | . 5 . Destroy Structure 6 | . 6 . Influence Decreases 101 | 20 61 20 Time Decay 101 | 20 61 20 Squads Dispatched 1 | . 1 . Investigation . | . . . Extermination . | . . . Reinforcement 1 | . 1 . Assault . | . . . Garrison . | . . . Intercept . | . . . Searches Triggered . | . . . Construction Impeded . | . . . Haulers Reinforced . | . . . Active Scanning Responses . | . . . Cargo Convoy Interrupts . | . . . Stealth | -11 -10 -10 --------- Run | Yrd Mat Sub Distress Signals . | . . . Communications Jammed . | . . . Distress Signals . | . . . Times Spotted 8 | . 3 5 Peak Tracking Total 2 | . 2 2 Tactical Retreats . | . . . Traps | -11 -10 -10 ------- Run | Yrd Mat Sub Traps Triggered . | . . . Indirectly . | . . . Trap Hack Attempts . | . . . Triggered . | . . . Disarmed . | . . . Reprogrammed . | . . . Reused . | . . . Traps Extracted . | . . . Installed . | . . . Triggered . | . . . Machines | -11 -10 -10 ---------- Run | Yrd Mat Sub Machines Disabled . | . . . Max in Single Turn . | . . . Machines Repaired . | . . . Machines Dismantled . | . . . Machines Sabotaged . | . . . Overloaded Fab Kills . | . . . Hacking | -11 -10 -10 --------- Run | Yrd Mat Sub Machines Accessed 1 | . 1 . Terminals 1 | . 1 . Fabricators . | . . . Repair Stations . | . . . Recycling Units . | . . . Scanalyzers . | . . . Garrison Access . | . . . Total Hacks 5 | . 5 . Successful 3 | . 3 . Failed 2 | . 2 . Catastrophic . | . . . Database Lockouts . | . . . Manual 4 | . 4 . Terminals 5 | . 5 . Fabricators . | . . . Repair Stations . | . . . Recycling Units . | . . . Scanalyzers . | . . . Garrison Access . | . . . Terminal Hacks 2 | . 2 . Robot Analysis 1 | . 1 . Zone Layout 1 | . 1 . Fabricator Hacks . | . . . Repair Station Hacks . | . . . Recycling Unit Hacks . | . . . Scanalyzer . | . . . Garrison Access Hacks . | . . . Unauthorized Hacks 1 | . 1 . Terminals 1 | . 1 . Skim 1 | . 1 . Fabricators . | . . . Repair Stations . | . . . Recycling Units . | . . . Scanalyzers . | . . . Garrison Access . | . . . Data Cores Recovered . | . . . Used . | . . . Hacking Detections 1 | . 1 . Full Trace Events . | . . . Feedback Events . | . . . Feedback Blocked . | . . . Robot Schematics Acquired . | . . . Robots Built . | . . . Authchips . | . . . Time . | . . . Total Robot Build Rating . | . . . Part Schematics Acquired . | . . . Parts Built . | . . . Authchips . | . . . Time . | . . . Total Part Build Rating . | . . . Parts Repaired . | . . . Time . | . . . Parts Recycled . | . . . Recycled Matter . | . . . Retrieved Matter . | . . . Retrieved Components . | . . . Parts Scanalyzed . | . . . Part Schematics Acquired . | . . . Parts Damaged . | . . . Bothacking | -11 -10 -10 ------------ Run | Yrd Mat Sub Used RIF Installer . | . . . Robots Hacked . | . . . Non-combat . | . . . Combat . | . . . Robot Hacks Applied . | . . . Relay Couplers Released . | . . . Fabnet Peak Effective % . | . . . Robots Rewired . | . . . Allies Hacked . | . . . Hacks Repelled . | . . . Allies | -11 -10 -10 -------- Run | Yrd Mat Sub Total Allies . | . . . Largest Group . | . . . Highest-Rated Group . | . . . Highest-Rated Ally . | . . . Total Orders . | . . . Ally Attacks . | . . . Total Damage . | . . . Kills . | . . . Allies Corrupted . | . . . Allies Melted . | . . . Intel | -11 -10 -10 ------- Run | Yrd Mat Sub Active Infowar (turns) 820 | 14 286 520 Seismic 820 | 14 286 520 Robot Analysis Total 1 | . 1 . Derelict Logs Recovered 1 | . . 1 Drone Launches . | . . . Drone Recoveries . | . . . Exploration | -11 -10 -10 ------------- Run | Yrd Mat Sub Turns Passed 1103 | 139 286 678 Spaces Moved 637 | 85 164 388 Core 28 | 26 . 2 Treads 475 | 59 164 252 Legs . | . . . Wheels 134 | . . 134 Hover . | . . . Flight . | . . . Fastest Speed 50 | 50 160 119 Average Speed 147 | 126 160 146 Slowest Speed 200 | 160 160 200 Overloaded Moves . | . . . Propulsion Burnouts . | . . . Robots Hopped . | . . . Potential Cave-ins . | . . . Cave-ins Triggered . | . . . Exploration Rate (%) 16 | 6 17 27 Regions Visited 2 Branch Regions 1 Pre-discovered Areas . | . . . Known Exits Taken . | . . . Unknown Exits Taken 2 | 1 1 . Scrap Searched . | . . . Spaces Dug . | . . . Terrain Destroyed 9 | 4 5 . Melee . | . . . Projectile . | . . . AOE 9 | 4 5 . Terrain Rammed . | . . . Walls Destroyed . | . . . Machines Disabled . | . . . Actions | -11 -10 -10 --------- Run | Yrd Mat Sub Total 741 | 106 181 454 Wait 15 | . 13 2 Move 635 | 84 163 388 Hop . | . . . Pick Up 22 | 9 1 12 Fast Attach 1 | 1 . . Attach 15 | 6 . 9 Detach 1 | . . 1 Swap 3 | . . 3 Drop 4 | . . 4 Fire 41 | 6 4 31 Melee . | . . . Ram 1 | . . 1 Kick . | . . . Crush 3 | . . 3 Escape Stasis . | . . . Rewire . | . . . Trap . | . . . Miscellaneous . | . . . Route ------- -11/Scrapyard -10/Materials -10/Subcaves (discovered 1 exit: [Scr]) History --------- Turn | Location | Event 46 | -11/Scrapyard | Discovered new exit (range 15) 140 | -11/Scrapyard | Entered Materials 318 | -10/Materials | Build established: Mutant 332 | -10/Materials | Discovered new exit (range 11) 426 | -10/Materials | Entered Subcaves 427 | -10/Subcaves | Approached by a straggling Scientist 518 | -10/Subcaves | Shifting Twisted Machinery released Scrap Shield 909 | -10/Subcaves | Scientist uncovered a shortcut to Scraptown 972 | -10/Subcaves | Learned Materials terminal intel 1089 | -10/Subcaves | Core integrity fell below 50% 1099 | -10/Subcaves | Core integrity fell below 20% 1104 | -10/Subcaves | Destroyed by G2-MUL(R) with Subdweller Beam Cannon Last Messages --------------- 01088_ Sub. Monowheel destroyed. 01090_ Dropped Sub. Optics. 01092_ Critical hit (Meltdown: +260). 01094_ Overheating: System interference. 01094_ Lgt. Assault Rifle temporarily disabled. 01094_ Slammed into G2-MUL(R). 01094_ Critical hit (Meltdown: +250). 01095_ Overheating: Lgt. Treads damaged (-27). 01095_ Slammed into G2-MUL(R). 01097_ Power failure, Sub. Power Source shutdown. 01097_ Slammed into G2-MUL(R). 01098_ Lgt. Treads destroyed. 01098_ Critical hit (Meltdown: +280). 01098_ Lgt. Treads destroyed. 01098_ Integrated Corrupted Sub. Monowheel (+2). 01098_ Corrupted Sub. Monowheel temporarily disabled. 01099_ Slammed into G2-MUL(R). 01100_ Lgt. Assault Rifle destroyed. Map ----- +----------------------------------------------------+ | ????????????????????????????????????????????? | | ????????????????????????????????????????????? | | ????????????????????????????????????????????? | | ????????????????????????????????????????????? | | ????????????????????????????????????????????? | | ????????????????????????????????????????????? | | ????????????????????????????????????????????? | | ????????????????????????????????????????????? | | ????????????????????????????????????????????? | | ????????????????????????????????????????????? | | ????????????????????????????????????????????? | | ??????????????????????????? ???????????????? | | ??????????????????????????? ???????????????? | | ??????????????????????????? #???????????????? | | ??????????????????????????? #???????????????? | | ??????????????????????????? #???????????????? | | ?????????????????????####?? #???????????????? | | ?????????????????????? ## ###?????????????? | | ?????????????????????? ??????????????? | | ??????????????????????? ??????????????? | | ??????????????????????? ???????????????? | | ?????????????????????### ##??????????????? | | ?????????????????????# # # #??????????????? | | ?????????????????????# #???????????????? | | ?????????????????????# #???????????????? | | ???????????????????????# @ #???????????????? | | ???????????????????????### R#???????????????? | | ???????????????????#?????# #???????????????? | | ???????????????????# ???## R#???????????????? | | ???????????????????# ?##" ##??????????????? | | ???????????????????# #" #??????????????? | | ???????????????????# # ! #??????????????? | | ????????????????????# #??????????????? | | ????????????????????## # ###??????????????? | | ?????????????????????### ##???????????????? | | ??????????????????????## #???????????????? | | ?????????????????????## ##???????????????? | | ?????????????????????# "#????????????????? | | ??????????????###???## ##????????????????? | | ??????????##### ##### #????????????????? | | ?##??????## ## #????????????????? | | ?# ####?## "" ##????????????????? | | ?# #?# #"###?????????????????? | | ## ### ####????????????????????? | | # ! # ##???????????????????????? | | = ##????????????????????????? | | % #?????????????????????????? | | # # ## ## ###???????????????????????? | | # #### ### #???????????????????????? | | # ##??# ### #???????????????????????? | +----------------------------------------------------+ Best States ------------- Heat Dissipation 25 Energy Generation 15 Energy Capacity 200 Matter Stores 300 Matter Capacity 300 Sight Range 16 Terrain Scan Density 10 Armor Coverage 150 Evasion (%) 50 Recoil Reduction 2 Item Schematics ----------------- None Robot Schematics ------------------ None Fabricated ------------ Nothing Repaired ---------- Nothing Alien Tech Used ----------------- None Achievements -------------- None Challenges ------------ None Game ------ Seed VisualWeaponCompactor Manual? 0 Play Time 00:08:12 Cumulative 268.3 hours Start 2025.09.07 @ 16:36:32 End 2025.09.07 @ 16:41:34 Sessions 1 Manual Loads 0 Difficulty Rogue Special Mode None Game No. 391 Rogue 391 Adventurer 0 Explorer 0 Win Type - Total 5 Types 4/0/1/0/0/0/0/0/0/0 Lore% 83 Gallery% 79 Achievement% 61 Wizard Run 0 Options --------- Layout 1 ASCII 0 Keyboard 0 Movement Mouse Keybinds 0 Fullscreen 1 Font 24/Smallcaps Map View 50x40 Zoom Use 0% Tactical HUD 1 Map Filters NONE Filters NONE Steam 1 RUN: 2f0b5377-880f-4968-8830-7f4e971fa51e